Cogmind - Beta 9.2 @@@ ROGUE MODE // 2019.12.24 @ 20:47:00 Player: Fleshy Vegetable Bird Result: Destroyed by G-47 Trooper with Particle Gun Performance ------------- Evolutions (1) 500 Regions Visited (2) 400 Robots Destroyed (34) 170 Value Destroyed (598) 598 Prototype IDs (0) 0 Alien Tech Used (0) 0 Bonus (0) 0 TOTAL SCORE: 1668 Bonus ------- None Cogmind --------- Core Integrity 0/400 Matter 244/300 Energy 100/100 System Corruption 0% Temperature Cool (9) Movement Core (400) Ox7 Location -9/Materials Parts ------- > --- POWER (1) -------- (None) > --- PROPULSION (3) --- (None) > --- UTILITY (3) ------ Large Storage Unit > --- WEAPON (2) ------- Maul Maul > --- INVENTORY (10) --- Light Ion Engine Improved Ion Engine Improved Ion Engine High-capacity Storage Unit High-capacity Storage Unit High-capacity Storage Unit Hacking Suite Peak State ------------ > --- POWER ------------ Light Ion Engine > --- PROPULSION ------- Wheel Wheel Wheel > --- UTILITY ---------- Small Storage Unit Small Storage Unit Large Storage Unit > --- WEAPON ----------- Assault Rifle Improved Light Cannon > --- INVENTORY -------- Light Ion Engine Improved Ion Engine Improved Ion Engine High-capacity Storage Unit High-capacity Storage Unit High-capacity Storage Unit Hacking Suite Mining Laser Maul Maul [Rating: 11] Favorites ----------- Power Ion Engine Engine Ion Engine Propulsion Wheel Wheel Wheel Utility Small Storage Unit Storage Small Storage Unit Weapon Medium Laser Energy Gun Medium Laser Ballistic Gun Assault Rifle Ballistic Cannon Improved Light Cannon Special Weapon Mining Laser Impact Weapon Maul Build | -11 -10 -9 ------- Run | Scr Mat Mat Slots Evolved 2 | . . 2 Power . | . . . Propulsion 1 | . . 1 Utility 1 | . . 1 Weapon . | . . . Parts Attached 18 | 7 6 5 Power 2 | 1 1 . Engine 2 | 1 1 . Core . | . . . Reactor . | . . . Propulsion 5 | 2 2 1 Treads . | . . . Leg . | . . . Wheel 5 | 2 2 1 Hover . | . . . Flight . | . . . Utility 3 | 2 . 1 Device . | . . . Storage 3 | 2 . 1 Processor . | . . . Hackware . | . . . Protection . | . . . Artifact . | . . . Weapon 8 | 2 3 3 Energy Gun 3 | 2 1 . Energy Cannon . | . . . Ballistic Gun 1 | . 1 . Ballistic Cannon 1 | . . 1 Launcher . | . . . Special Weapon 1 | . 1 . Impact Weapon 2 | . . 2 Slashing Weapon . | . . . Piercing Weapon . | . . . Special Melee Weapon . | . . . Unidentified Prototypes . | . . . Parts Lost 11 | . 5 6 Power 1 | . . 1 Propulsion 5 | . 2 3 Utility . | . . . Weapon 5 | . 3 2 Highest Loss Streak 4 | . 4 4 Average Slot Usage (%) 88 | . 93 80 Engine 12 | . 14 9 Wheel 23 | . 25 20 Storage 27 | . 28 27 Energy Gun 11 | . 19 . Ballistic Gun 4 | . 1 9 Ballistic Cannon 2 | . . 5 Special Weapon 3 | . 3 3 Impact Weapon 1 | . . 2 Naked Turns . | . . . Heaviest Build 33 | 17 17 33 Greatest Support 30 | 20 20 30 Greatest Overweight (x) 7 | . 1 7 Average Overweight (x) . | . . . Largest Inventory Capacity 14 | 8 8 14 Average Capacity 9 | 6 8 12 Most Carried 10 | 6 8 10 Average Carried 6 | 3 6 8 Final Capacity 10 | 8 8 10 Final Carried 7 | 5 6 7 Class Distribution -------------------- 76% | Mutant 23% | Scavenger-Mutant Dominant Class ---------------- Mutant | -10/Materials Scavenger-Mutant | -9/Materials Resources | -11 -10 -9 ----------- Run | Scr Mat Mat Matter Collected 534 | 270 61 203 Remotely . | . . . Salvage Created 885 | 178 420 287 Parts 79 | 18 29 32 Haulers Intercepted 2 | . 2 . Recyclers Shooed . | . . . Parts Field Recycled . | . . . Retrieved Matter . | . . . Parts Self-Destructed . | . . . Prevented . | . . . Kills | -11 -10 -9 ------- Run | Scr Mat Mat Combat Hostiles Destroyed 22 | . 9 13 Melee 1 | . . 1 Guns 18 | . 9 9 Cannons 2 | . . 2 Classes Destroyed 8 | 2 4 2 Worker 1 | . . 1 Tunneler 5 | 5 . . Hauler 2 | . 2 . Recycler 1 | 1 . . Operator 3 | . 3 . Swarmer 12 | . 3 9 Grunt 9 | . 6 3 Sentry 1 | . . 1 Best Kill Streak 4 | 3 4 4 Combat Bots Only 3 | . 3 3 Max Kills in Single Turn 2 | 1 2 2 Gunslinging 1 | . 1 . Exploded . | . . . Melee 1 | . . 1 Uniques/NPCs Destroyed . | . . . Combat | -11 -10 -9 -------- Run | Scr Mat Mat Damage Taken 1449 | . 393 1056 Core 490 | . 85 405 Absorbed by Shields . | . . . Core Remaining (%) 83 | 100 66 . Volleys Fired 96 | 8 53 35 Largest 2 | 2 2 2 Hottest 120 | 100 120 59 Shots Fired 166 | 16 82 68 Gun 125 | 16 76 33 Cannon 35 | . . 35 Launcher . | . . . Special 6 | . 6 . Kinetic 70 | . 2 68 Thermal 79 | 16 63 . Explosive . | . . . Electromagnetic 17 | . 17 . Robot Hit Streak 9 | 4 8 9 Robot Miss Streak 5 | 1 4 5 Penetration Max . | . . . Secondary Targets 1 | . 1 . Max Gunslinging Chain 1 | . 1 . Shots Hit Robots 102 | 10 54 38 Core Hits 46 | 7 24 15 Critical Hits . | . . . Critical Kills . | . . . Critical Parts Destroyed . | . . . Melee Attacks 9 | . . 9 Impact 9 | . . 9 Slashing . | . . . Piercing . | . . . Sneak Attacks . | . . . Combat Hostiles . | . . . Follow-up Attacks 1 | . . 1 Damage Inflicted 1485 | 124 730 631 Guns 1052 | 124 658 270 Cannons 218 | . . 218 Explosions . | . . . Melee 143 | . . 143 Ramming . | . . . Kinetic 503 | . 15 488 Thermal 669 | 124 545 . Explosive . | . . . Electromagnetic 170 | . 170 . Impact 143 | . . 143 Slashing . | . . . Piercing . | . . . Highest Corruption 1 | . 1 . Average Corruption 1 | . 1 . Corruption Purged . | . . . Overload Shots . | . . . Overflow Damage 24 | . 22 2 Projectiles 23 | . 22 1 Explosions . | . . . Melee 1 | . . 1 Knockbacks 5 | . . 5 Impact 1 | . . 1 Kinetic 4 | . . 4 Secondary . | . . . Self-Inflicted Damage . | . . . Shots . | . . . Rammed . | . . . Targets Rammed . | . . . Kicked . | . . . Crushed . | . . . Highest Temperature 210 | 120 210 15 Average Temperature 64 | 47 71 3 Received Heat Transfer 540 | . 189 351 Siege Activations . | . . . Robots Corrupted . | . . . Combat Hostiles . | . . . Parts Fried 2 | . . 2 Impact Corruptions 1 | . . 1 Robots Melted . | . . . Combat Hostiles . | . . . Parts Melted 2 | . 2 . Heat Transferred 1926 | 370 1556 . Parts Sabotaged . | . . . Parts Stolen . | . . . Parts Stripped . | . . . Power Chain Reactions . | . . . Missiles Intercepted . | . . . Alert | -11 -10 -9 ------- Run | Scr Mat Mat Peak Influence 380 | 30 321 380 Average Influence 140 | 15 148 174 Maximum Alert Level 1 | . 1 1 Low Security (%) 69 | 100 70 56 Level 1 30 | . 29 43 Level 2 . | . . . Level 3 . | . . . Level 4 . | . . . Level 5 . | . . . High Security . | . . . Max Security . | . . . Squads Dispatched 6 | . 4 2 Investigation 1 | . 1 . Extermination . | . . . Reinforcement 5 | . 3 2 Assault . | . . . Garrison . | . . . Intercept . | . . . Construction Impeded . | . . . Haulers Reinforced . | . . . Stealth | -11 -10 -9 --------- Run | Scr Mat Mat Distress Signals 4 | . 1 3 Communications Jammed . | . . . Distress Signals . | . . . Times Spotted 49 | . 24 25 Peak Tracking Total 8 | . 6 8 Tactical Retreats 5 | . 4 1 Traps | -11 -10 -9 ------- Run | Scr Mat Mat Traps Triggered 1 | . 1 . Indirectly . | . . . Trap Hack Attempts . | . . . Triggered . | . . . Disarmed . | . . . Reprogrammed . | . . . Reused . | . . . Traps Extracted . | . . . Installed . | . . . Triggered 1 | . 1 . Machines | -11 -10 -9 ---------- Run | Scr Mat Mat Machines Disabled 2 | . . 2 Max in Single Turn 1 | . . 1 Machines Sabotaged . | . . . Garrisons Compromised . | . . . Overloaded Fab Kills . | . . . Fab Network Shutdowns . | . . . Hacking | -11 -10 -9 --------- Run | Scr Mat Mat Machines Accessed 3 | . 2 1 Terminals 3 | . 2 1 Fabricators . | . . . Repair Stations . | . . . Recycling Units . | . . . Scanalyzers . | . . . Garrison Access . | . . . Total Hacks 8 | . 5 3 Successful 4 | . 2 2 Failed 4 | . 3 1 Catastrophic . | . . . Database Lockouts . | . . . Manual 8 | . 5 3 Terminals 8 | . 5 3 Fabricators . | . . . Repair Stations . | . . . Recycling Units . | . . . Scanalyzers . | . . . Garrison Access . | . . . Terminal Hacks 2 | . 1 1 Terminal Index 1 | . . 1 Recall Reinforcements 1 | . 1 . Fabricator Hacks . | . . . Repair Station Hacks . | . . . Recycling Unit Hacks . | . . . Scanalyzer . | . . . Garrison Access Hacks . | . . . Unauthorized Hacks 7 | . 4 3 Terminals 2 | . 1 1 Botnet 2 | . 1 1 Fabricators . | . . . Repair Stations . | . . . Recycling Units . | . . . Scanalyzers . | . . . Garrison Access . | . . . Data Cores Recovered . | . . . Used . | . . . Hacking Detections 3 | . 2 1 Full Trace Events . | . . . Feedback Events . | . . . Feedback Blocked . | . . . Robot Schematics Acquired . | . . . Robots Built . | . . . Matter . | . . . Time . | . . . Total Robot Build Rating . | . . . Part Schematics Acquired . | . . . Parts Built . | . . . Matter . | . . . Time . | . . . Total Part Build Rating . | . . . Parts Repaired . | . . . Time . | . . . Parts Recycled . | . . . Recycled Matter . | . . . Retrieved Matter . | . . . Retrieved Components . | . . . Parts Scanalyzed . | . . . Part Schematics Acquired . | . . . Parts Damaged . | . . . Bothacking | -11 -10 -9 ------------ Run | Scr Mat Mat Used RIF Installer . | . . . Robots Hacked . | . . . Non-combat . | . . . Combat . | . . . Robot Hacks Applied . | . . . Relay Couplers Released . | . . . Robots Rewired . | . . . Allies Hacked . | . . . Hacks Repelled . | . . . Allies | -11 -10 -9 -------- Run | Scr Mat Mat Total Allies . | . . . Largest Group . | . . . Highest-Rated Group . | . . . Highest-Rated Ally . | . . . Total Orders . | . . . Ally Attacks . | . . . Total Damage . | . . . Kills . | . . . Allies Corrupted . | . . . Allies Melted . | . . . Intel | -11 -10 -9 ------- Run | Scr Mat Mat Robot Analysis Total . | . . . Derelict Logs Recovered . | . . . Drone Launches . | . . . Drone Recoveries . | . . . Exploration | -11 -10 -9 ------------- Run | Scr Mat Mat Turns Passed 939 | 117 511 311 Spaces Moved 663 | 91 390 182 Core 8 | 6 . 2 Treads . | . . . Legs . | . . . Wheels 655 | 85 390 180 Hover . | . . . Flight . | . . . Fastest Speed 50 | 50 80 80 Average Speed 83 | 78 81 91 Slowest Speed 400 | 80 90 400 Overloaded Moves . | . . . Propulsion Burnouts . | . . . Robots Hopped . | . . . Cave-ins Triggered . | . . . Exploration Rate (%) 33 | 3 76 22 Regions Visited 2 Branch Regions . Pre-discovered Areas . | . . . Known Exits Taken . | . . . Unknown Exits Taken 2 | 1 1 . Scrap Searched . | . . . Spaces Dug . | . . . Terrain Destroyed 1 | . 1 . Melee . | . . . Projectile 1 | . 1 . AOE . | . . . Actions | -11 -10 -9 --------- Run | Scr Mat Mat Total 853 | 121 487 245 Wait 35 | . 31 4 Move 661 | 90 389 182 Hop . | . . . Pick Up 28 | 14 7 7 Fast Attach . | . . . Attach 16 | 7 5 4 Detach . | . . . Swap 2 | . 1 1 Drop 7 | 2 1 4 Fire 96 | 8 53 35 Melee 8 | . . 8 Ram . | . . . Kick . | . . . Crush . | . . . Escape Stasis . | . . . Rewire . | . . . Trap . | . . . Miscellaneous . | . . . Route ------- -11/Scrapyard -10/Materials (discovered 2 exits: *Mat x2) -9/Materials History --------- Turn | Location | Event 48 | -11/Scrapyard | Discovered new exit (range 16) 118 | -11/Scrapyard | Entered Materials 309 | -10/Materials | Build established: Mutant 403 | -10/Materials | Discovered new exit (range 4) 509 | -10/Materials | Discovered new exit (range 11) 529 | -10/Materials | Lost 4 parts (2n2w) 629 | -10/Materials | Entered another Materials area 629 | -9/Materials | Evolved 2 slots: Propulsion x1, Utility x1 917 | -9/Materials | Core integrity fell below 50% 931 | -9/Materials | Core integrity fell below 20% 937 | -9/Materials | Lost 4 parts (1p1n2w) 940 | -9/Materials | Destroyed by G-47 Trooper with Particle Gun Last Messages --------------- 00881_ S-10 Pest destroyed. 00893_ Door malfunctions. 00896_ S-10 Pest destroyed. 00897_ Acquired 10 matter. 00901_ U-05 Engineer repairs door. 00901_ Assault Rifle destroyed. 00903_ Wheel destroyed. 00904_ G-34 Mercenary knocked back. 00904_ Imp. Light Cannon destroyed. 00906_ Lgt. Ion Engine destroyed. 00908_ Dropped Sml. Storage Unit. 00912_ Maul follow-up attack on Y-45 Defender. 00912_ S-10 Pest destroyed. 00915_ Door malfunctions. 00918_ U-05 Engineer repairs door. 00918_ Y-45 Defender destroyed. 00925_ Acquired 50 matter. 00938_ Destroyed Sml. Laser. 00938_ G-34 Mercenary system corrupted by crushing effect. 00938_ G-34 Mercenary knocked back. Map ----- +----------------------------------------------------+ | ?????????????????????????????????????????????????? | | ?????????????????????????????????????????????????? | | ?????????????????????????????????????????????????? | | ?????????????????????????????????????????????????? | | ?????????????????????????????????????????????????? | | ?????????????????????????????????????????????????? | | ?????????????????????????????????????????????????? | | ?????????????????????????????????????????????????? | | ?????????????????????????????????????????????????? | | ?????????????????????????????????????????????????? | | ?????????????????????????????????????????????????? | | ?????????????????????##+??####+#?????????????????? | | ?????????????????????? ?? ??????????????????? | | ?????????????????????? ?? ??????????????????? | | ?????????????????????? %?? ??????????????????? | | ????????????????????###/### #??????????????????? | | ???????????????????## [* # ##?????????????????? | | ???????????????????? ==[ # # ?????????????????? | | ????????????????????# =[ # +??????????????????? | | ????????????????????# =[ # #??????????????????? | | ????????????????????# #=%=#??????????????????? | | ????????????????????# +==[#??????????????????? | | ????????????????????# gg#%=#???????????????????? | | ??????? ??????????# !#!=#???????????????????? | | ??????? ?????????# " "!+*%#???????????????????? | | ??????? ?????????# "R"@##[#???????????????????? | | ????????? ????????# """[## #???????????????????? | | ?????????? ???????# ## #???????????????????? | | ??????????? ??######+#####+##??????????????????? | | ????????????# ?# #??????????????????? | | ????????????# # #??????????????????? | | ????????????# # """" """" #??????????????????? | | ????????????? +=!"""" """" #??????????????????? | | ????????????????# =""""="""" #??????????????????? | | ????????????????#* ! [ #??????????????????? | | ????????????????######+#########?????????????????? | | ???????????????????# #?????????????????? | | ???????????????????# #?????????????????? | | ???????????????????# #?????????????????? | | ???????????????????# """ """ #?????????????????? | | ???????????????????# """ """ #?????????????????? | | ???????????????????# "" """ #?????????????????? | | ???????????????????# =*=% #?#???????????????? | | ???????????????????#######+##### #???????????????? | | ????????????????????????#% [ * #???????????????? | | ???????????????##########=* #???????????????? | | ???????????????# | [# #???????????????? | | ???????????????# [= # """ #???????????????? | | ???????????????# """= =# """ #???????????????? | | ???????????????# """"% # """ #???????????????? | +----------------------------------------------------+ Best States ------------- Heat Dissipation 28 Energy Generation 10 Energy Capacity 250 Matter Stores 300 Matter Capacity 300 Sight Range 16 Terrain Scan Density 10 Evasion (%) 44 Item Schematics ----------------- None Robot Schematics ------------------ None Fabricated ------------ Nothing Alien Tech Used ----------------- None Achievements -------------- None Challenges ------------ None Game ------ Seed LightningSpectralCoupler Manual? 0 Play Time 00:12:34 Cumulative 285.0 hours Start 2019.12.24 @ 20:37:27 End 2019.12.24 @ 20:47:00 Sessions 1 Manual Loads 0 Difficulty Rogue Special Mode None Game No. 325 Rogue 325 Adventurer 0 Explorer 0 Win Type - Total 4 Types 1/1/1/1/0/0/0 Lore% 67 Gallery% 85 Achievement% 64 Wizard Run 0 Options --------- ASCII 0 Keyboard 0 Movement Numpad Keybinds 0 Fullscreen 1 Font 16/Terminus Map View 75x55 Tactical HUD 1 Map Filters NONE Filters NONE Steam 1 RUN: 73c629f5-7117-4c72-add6-2c145476aedc